fUST/lending_fUST_20250319
["ID","MTS","AMOUNT","RATE_DAILY","PERIOD"]
[356351889,1742327444524,-500.0,8.493e-05,2]
[356351890,1742327444533,-500.0,8.493e-05,2]
[356351891,1742327444542,-500.0,8.493e-05,2]
[356351892,1742327444552,-500.0,8.493e-05,2]
[356351893,1742327444561,-500.0,8.493e-05,2]
[356351894,1742327444570,-500.0,8.493e-05,2]
[356351895,1742327444579,-496.61031224,8.493e-05,2]
[356351896,1742327444595,-3.38968776,8.493e-05,2]
[356351897,1742327444604,-326.60289599,8.493e-05,2]
[356351913,1742327446730,-500.0,8.219e-05,2]
[356351914,1742327446740,-500.0,8.219e-05,2]
[356351915,1742327446751,-173.39710401,8.493e-05,2]
[356351916,1742327446761,-513.81959895,8.493e-05,2]
[356351917,1742327446771,-500.0,8.493e-05,2]
[356351918,1742327446780,-500.0,8.493e-05,2]
[356351919,1742327446791,-517.35287095,8.493e-05,2]
[356351920,1742327446800,-500.0,8.493e-05,2]
[356351921,1742327446810,-875.44,8.493e-05,2]
[356351922,1742327446819,-510.29270413,8.493e-05,2]
[356351923,1742327446959,-500.0,8.493e-05,2]
[356351924,1742327446969,-503.95751416,8.493e-05,2]
[356351925,1742327446979,-500.0,8.493e-05,2]
[356351926,1742327446991,-500.0,8.493e-05,2]
[356351927,1742327447005,-500.0,8.493e-05,2]
[356351928,1742327447015,-500.0,8.493e-05,2]
[356351929,1742327447027,-500.0,8.493e-05,2]
[356351930,1742327447038,-500.0,8.493e-05,2]
[356351931,1742327447047,-515.27794565,8.493e-05,2]
[356351932,1742327447058,-513.10056617,8.493e-05,2]
[356351933,1742327447067,-500.0,8.493e-05,2]
[356351934,1742327447077,-500.0,8.493e-05,2]
[356351935,1742327447087,-262.19,8.493e-05,2]
[356351936,1742327447097,-500.0,8.493e-05,2]
[356351937,1742327447107,-500.0,8.493e-05,2]
[356351938,1742327447116,-500.0,8.493e-05,2]
[356351939,1742327447126,-500.0,8.493e-05,2]
[356351940,1742327447136,-500.0,8.493e-05,2]
[356351941,1742327447146,-513.65555704,8.493e-05,2]
[356351942,1742327447158,-171.7,8.493e-05,2]
[356351943,1742327447170,-500.0,8.493e-05,2]
[356351944,1742327447179,-500.0,8.493e-05,2]
[356351945,1742327447189,-500.0,8.493e-05,2]
[356351946,1742327447199,-151.0,8.493e-05,2]
[356351947,1742327447210,-151.0,8.493e-05,2]
[356351948,1742327447220,-500.0,8.493e-05,2]
[356351949,1742327447230,-599.28096317,8.493e-05,2]
[356351950,1742327447239,-500.0,8.493e-05,2]
[356351951,1742327447249,-500.0,8.493e-05,2]
[356351952,1742327447259,-500.0,8.493e-05,2]
[356351953,1742327447268,-500.0,8.493e-05,2]
[356351954,1742327447278,-500.0,8.493e-05,2]
[356351955,1742327447287,-500.0,8.493e-05,2]
[356351956,1742327447297,-500.0,8.493e-05,2]
[356351957,1742327447307,-500.0,8.493e-05,2]
[356351958,1742327447316,-500.0,8.493e-05,2]
[356351959,1742327447326,-515.02268492,8.493e-05,2]
[356351960,1742327447335,-500.0,8.493e-05,2]
[356351961,1742327447345,-22522.67,8.493e-05,2]
[356351962,1742327447354,-500.0,8.493e-05,2]
[356351963,1742327447364,-500.0,8.493e-05,2]
[356351964,1742327447373,-616.37,8.493e-05,2]
[356351965,1742327447383,-500.0,8.493e-05,2]
[356351966,1742327447392,-500.0,8.493e-05,2]
[356351967,1742327447402,-500.0,8.493e-05,2]
[356351968,1742327447413,-500.0,8.493e-05,2]
[356351969,1742327447422,-500.0,8.493e-05,2]
[356351970,1742327447431,-500.0,8.493e-05,2]
[356351971,1742327447439,-500.0,8.493e-05,2]
[356351972,1742327447448,-505.29681296,8.493e-05,2]
[356351973,1742327447456,-500.0,8.493e-05,2]
[356351974,1742327447464,-500.0,8.493e-05,2]
[356351975,1742327447472,-500.0,8.493e-05,2]
[356351976,1742327447480,-500.0,8.493e-05,2]
[356351977,1742327447488,-500.0,8.493e-05,2]
[356351978,1742327447498,-725.26,8.493e-05,2]
[356351979,1742327447507,-500.0,8.493e-05,2]
[356351980,1742327447517,-500.0,8.493e-05,2]
[356351981,1742327447527,-500.0,8.493e-05,2]
[356351982,1742327447537,-500.0,8.493e-05,2]
[356351983,1742327447546,-500.0,8.493e-05,2]
[356351984,1742327447556,-500.0,8.493e-05,2]
[356351985,1742327447566,-500.0,8.493e-05,2]
[356351986,1742327447575,-500.0,8.493e-05,2]
[356351987,1742327447585,-502.04827598,8.493e-05,2]
[356351988,1742327447596,-500.0,8.493e-05,2]
[356351989,1742327447605,-500.0,8.493e-05,2]
[356351990,1742327447615,-509.20543486,8.493e-05,2]
[356351991,1742327447625,-500.0,8.493e-05,2]
[356351992,1742327447635,-500.0,8.493e-05,2]
[356351993,1742327447645,-500.0,8.493e-05,2]
[356351994,1742327447655,-500.0,8.493e-05,2]
[356351995,1742327447665,-303.85,8.493e-05,2]
[356351996,1742327447674,-505.37748289,8.493e-05,2]
[356351997,1742327447684,-189.62,8.493e-05,2]
[356351998,1742327447694,-500.0,8.493e-05,2]
[356351999,1742327447703,-500.0,8.493e-05,2]
[356352000,1742327447712,-395.76,8.493e-05,2]
[356352001,1742327447722,-512.02273419,8.493e-05,2]
[356352002,1742327447732,-500.0,8.493e-05,2]
[356352003,1742327447742,-500.0,8.493e-05,2]
[356352004,1742327447752,-506.53774158,8.493e-05,2]
[356352005,1742327447761,-173.03983058,8.493e-05,2]
[356352006,1742327447772,-500.0,8.493e-05,2]
[356352007,1742327447782,-500.0,8.493e-05,2]
[356352008,1742327447792,-500.0,8.493e-05,2]
[356352009,1742327447801,-594.34,8.493e-05,2]
[356352010,1742327447813,-515.76447048,8.493e-05,2]
[356352011,1742327447823,-500.0,8.493e-05,2]
[356352012,1742327447833,-500.0,8.493e-05,2]
[356352013,1742327447842,-500.0,8.493e-05,2]
[356352014,1742327447851,-500.0,8.493e-05,2]
[356352015,1742327447861,-500.0,8.493e-05,2]
[356352016,1742327447870,-500.0,8.493e-05,2]
[356352017,1742327447879,-500.0,8.493e-05,2]
[356352018,1742327447888,-500.0,8.493e-05,2]
[356352019,1742327447898,-500.0,8.493e-05,2]
[356352020,1742327447908,-500.0,8.493e-05,2]
[356352021,1742327447918,-500.0,8.493e-05,2]
[356352022,1742327447927,-500.0,8.493e-05,2]
[356352023,1742327447937,-500.0,8.493e-05,2]
[356352024,1742327447948,-500.0,8.493e-05,2]
[356352025,1742327447958,-500.0,8.493e-05,2]
[356352026,1742327447968,-500.0,8.493e-05,2]
[356352027,1742327447977,-500.0,8.493e-05,2]
[356352028,1742327447987,-505.7584227,8.493e-05,2]
[356352029,1742327447998,-500.0,8.493e-05,2]
[356352030,1742327448007,-500.0,8.493e-05,2]
[356352031,1742327448017,-500.0,8.493e-05,2]
[356352032,1742327448028,-500.0,8.493e-05,2]
[356352033,1742327448038,-500.0,8.493e-05,2]
[356352034,1742327448048,-500.0,8.493e-05,2]
[356352035,1742327448058,-343.52113584,8.63e-05,2]
[356352036,1742327448068,-10118.44925738,8.756e-05,2]
[356352037,1742327448078,-1372.14,8.765e-05,2]
[356352038,1742327448087,-1372.14,8.766e-05,2]
[356352039,1742327448097,-842.13,8.767e-05,2]
[356352040,1742327448107,-500.0,8.767e-05,2]
[356352041,1742327448116,-500.0,8.767e-05,2]
[356352042,1742327448126,-875.44,8.767e-05,2]
[356352043,1742327448136,-183.31,8.767e-05,2]
[356352044,1742327448145,-500.0,8.767e-05,2]
[356352045,1742327448155,-566.39878122,8.767e-05,2]
[356352046,1742327448167,-500.0,8.767e-05,2]
[356352047,1742327448177,-500.0,8.767e-05,2]
[356352048,1742327448187,-22522.67,8.767e-05,2]
[356352049,1742327448197,-500.0,8.767e-05,2]
[356352050,1742327448208,-500.0,8.767e-05,2]
[356352051,1742327448219,-616.37,8.767e-05,2]
[356352052,1742327448230,-500.0,8.767e-05,2]
[356352053,1742327448241,-500.0,8.767e-05,2]
[356352054,1742327448251,-725.26,8.767e-05,2]
[356352055,1742327448262,-500.0,8.767e-05,2]
[356352056,1742327448272,-500.0,8.767e-05,2]
[356352057,1742327448281,-500.0,8.767e-05,2]
[356352058,1742327448291,-500.0,8.767e-05,2]
[356352059,1742327448301,-500.0,8.767e-05,2]
[356352060,1742327448311,-500.0,8.767e-05,2]
[356352061,1742327448321,-500.0,8.767e-05,2]
[356352062,1742327448331,-297.57,8.767e-05,2]
[356352063,1742327448341,-343.52113584,8.835e-05,2]
[356352064,1742327448350,-500.0,9.013e-05,2]
[356352065,1742327448360,-573.03127866,9.013e-05,2]
[356352066,1742327448370,-500.0,9.013e-05,2]
[356352067,1742327448380,-500.0,9.013e-05,2]
[356352068,1742327448390,-500.0,9.013e-05,2]
[356352069,1742327448404,-177.25883088,9.038e-05,2]
[356352070,1742327448419,-550.76568163,9.038e-05,2]
[356352071,1742327448433,-176998.70926643,9.039e-05,2]
[356352072,1742327448447,-343.52113584,9.04e-05,2]
[356352073,1742327448459,-842.13,9.041e-05,2]
[356352074,1742327448471,-500.0,9.041e-05,2]
[356352075,1742327448483,-875.44,9.041e-05,2]
[356352076,1742327448496,-500.0,9.041e-05,2]
[356352077,1742327448509,-500.0,9.041e-05,2]
[356352078,1742327448522,-488.03,9.041e-05,2]
[356352079,1742327448535,-22522.67,9.041e-05,2]
[356352080,1742327448548,-500.0,9.041e-05,2]
[356352081,1742327448560,-616.37,9.041e-05,2]
[356352082,1742327448572,-500.0,9.041e-05,2]
[356352083,1742327448585,-725.26,9.041e-05,2]
[356352084,1742327448598,-325.06,9.041e-05,2]
[356352085,1742327448613,-500.0,9.041e-05,2]
[356352086,1742327448625,-169.04,9.041e-05,2]
[356352087,1742327448637,-500.0,9.041e-05,2]
[356352088,1742327448650,-500.0,9.041e-05,2]
[356352089,1742327448662,-500.0,9.041e-05,2]
[356352090,1742327448674,-500.0,9.041e-05,2]
[356352091,1742327448687,-972.75647465,9.138e-05,2]
[356352092,1742327448700,-2000.0,9.15e-05,2]
[356352093,1742327448712,-160.0,9.177e-05,2]
[356352094,1742327448725,-12458.93820146,9.177e-05,2]
[356352095,1742327448735,-160.0,9.177e-05,2]
[356352096,1742327448746,-833.90657078,9.177e-05,2]
[356352097,1742327448756,-417.85479977,9.177e-05,2]
[356352098,1742327448771,-812.22460425,9.2e-05,2]
[356352099,1742327448782,-3035.02289324,9.2e-05,2]
[356352100,1742327448795,-500.0,9.234e-05,2]
[356352101,1742327448807,-842.13,9.315e-05,2]
[356352102,1742327448821,-416.69,9.315e-05,2]
[356352103,1742327448833,-875.44,9.315e-05,2]
[356352104,1742327448845,-500.0,9.315e-05,2]
[356352105,1742327448859,-500.0,9.315e-05,2]
[356352106,1742327448871,-22522.67,9.315e-05,2]
[356352107,1742327448883,-291.28,9.315e-05,2]
[356352108,1742327448897,-616.37,9.315e-05,2]
[356352109,1742327448910,-500.0,9.315e-05,2]
[356352110,1742327448920,-725.26,9.315e-05,2]
[356352111,1742327448931,-500.0,9.315e-05,2]
[356352112,1742327448944,-500.0,9.315e-05,2]
[356352113,1742327448958,-500.0,9.315e-05,2]
[356352114,1742327448970,-500.0,9.315e-05,2]
[356352115,1742327448983,-184.05,9.315e-05,2]
[356352116,1742327448997,-578.41001272,9.414e-05,2]
[356352117,1742327449009,-842.13,9.589e-05,2]
[356352118,1742327449022,-875.44,9.589e-05,2]
[356352119,1742327449033,-500.0,9.589e-05,2]
[356352120,1742327449044,-500.0,9.589e-05,2]
[356352121,1742327449055,-22522.67,9.589e-05,2]
[356352122,1742327449067,-616.37,9.589e-05,2]
[356352123,1742327449079,-500.0,9.589e-05,2]
[356352124,1742327449090,-725.26,9.589e-05,2]
[356352125,1742327449101,-500.0,9.589e-05,2]
[356352126,1742327449111,-500.0,9.589e-05,2]
[356352127,1742327449122,-500.0,9.589e-05,2]
[356352128,1742327449133,-500.0,9.589e-05,2]
[356352129,1742327449145,-555.74205388,9.608e-05,2]
[356352130,1742327449158,-150.0,9.838e-05,2]
[356352131,1742327449169,-2270.0,9.838e-05,2]
[356352132,1742327449180,-1917.0,9.838e-05,2]
[356352133,1742327449192,-399.0,9.838e-05,2]
[356352134,1742327449203,-355.264,9.853e-05,2]
[356352135,1742327449214,-842.13,9.863e-05,2]
[356352136,1742327449225,-875.44,9.863e-05,2]
[356352137,1742327449236,-500.0,9.863e-05,2]
[356352138,1742327449248,-500.0,9.863e-05,2]
[356352139,1742327449260,-22522.67,9.863e-05,2]
[356352140,1742327449271,-616.37,9.863e-05,2]
[356352141,1742327449283,-500.0,9.863e-05,2]
[356352142,1742327449294,-725.26,9.863e-05,2]
[356352143,1742327449305,-624.26,9.863e-05,2]
[356352144,1742327449316,-151.35,9.863e-05,2]
[356352145,1742327449327,-500.0,9.863e-05,2]
[356352146,1742327449338,-500.0,9.863e-05,2]
[356352147,1742327449349,-243.8,0.0001,2]
[356352148,1742327449360,-10879.70585747,0.0001,2]
[356352149,1742327449370,-10879.70585737,0.0001,2]
[356352150,1742327449381,-842.13,0.00010136,2]
[356352151,1742327449392,-875.44,0.00010136,2]
[356352152,1742327449403,-500.0,0.00010136,2]
[356352153,1742327449416,-22522.67,0.00010136,2]
[356352154,1742327449427,-616.37,0.00010136,2]
[356352155,1742327449438,-500.0,0.00010136,2]
[356352156,1742327449448,-725.26,0.00010136,2]
[356352157,1742327449460,-500.0,0.00010136,2]
[356352158,1742327449471,-500.0,0.00010136,2]
[356352159,1742327449482,-989.5,0.0001038,2]
[356352160,1742327449493,-842.13,0.0001041,2]
[356352161,1742327449505,-875.44,0.0001041,2]
[356352162,1742327449516,-500.0,0.0001041,2]
[356352163,1742327449528,-22522.67,0.0001041,2]
[356352164,1742327449539,-616.37,0.0001041,2]
[356352165,1742327449551,-500.0,0.0001041,2]
[356352166,1742327449562,-725.26,0.0001041,2]
[356352167,1742327449573,-500.0,0.0001041,2]
[356352168,1742327449584,-222.23,0.0001041,2]
[356352169,1742327449595,-842.13,0.00010684,2]
[356352170,1742327449606,-875.44,0.00010684,2]
[356352171,1742327449617,-500.0,0.00010684,2]
[356352172,1742327449628,-9182.53357701,0.00010684,2]
[356352173,1742327449645,-13340.13642299,0.00010684,2]
[356352174,1742327449656,-616.37,0.00010684,2]
[356352175,1742327449667,-500.0,0.00010684,2]
[356352176,1742327449677,-725.26,0.00010684,2]
[356352177,1742327449688,-500.0,0.00010684,2]
[356352178,1742327449699,-900.0,0.00010713,2]
[356352179,1742327449711,-10879.70585737,0.00010848,2]
[356352180,1742327449721,-842.13,0.00010958,2]
[356352181,1742327449732,-875.44,0.00010958,2]
[356352182,1742327449744,-500.0,0.00010958,2]
[356352183,1742327449755,-13166.39611625,0.00010958,2]
[356352184,1742327449768,-833.8,0.00010958,2]
[356352185,1742327812395,4533.2973032,7.492e-05,2]
[356352186,1742328230824,2015.09,8e-05,2]
[356352189,1742328430106,-300.0,8.117e-05,2]
[356352190,1742328430135,-595.74440539,8.118e-05,2]
[356352191,1742328430158,-1.19178197,8.118e-05,2]
[356352196,1742328565098,-196.52169697,8.118e-05,2]
[356352197,1742328565120,-500.0,8.118e-05,2]
[356352198,1742328565142,-500.0,8.118e-05,2]
[356352199,1742328565166,-500.0,8.118e-05,2]
[356352200,1742328565189,-382.55849648,8.118e-05,2]
[356352201,1742328565211,-29241.55320655,8.119e-05,2]
[356352202,1742328569099,-22536.423,8.119e-05,2]
[356352230,1742328631790,-392.58,8.119e-05,2]
[356352231,1742328631896,-95053.65210647,8.119e-05,2]
[356352232,1742328631907,-500.0,8.193e-05,2]
[356352233,1742328631916,-260.06267934,8.193e-05,2]
[356352234,1742328631925,-500.0,8.193e-05,2]
[356352235,1742328631934,-500.0,8.193e-05,2]
[356352236,1742328631944,-500.0,8.193e-05,2]
[356352237,1742328631953,-500.0,8.193e-05,2]
[356352238,1742328631962,-500.0,8.193e-05,2]
[356352239,1742328631972,-500.0,8.193e-05,2]
[356352240,1742328631981,-500.0,8.193e-05,2]
[356352241,1742328631991,-500.0,8.193e-05,2]
[356352242,1742328632001,-500.0,8.193e-05,2]
[356352243,1742328632010,-500.0,8.193e-05,2]
[356352244,1742328632020,-500.0,8.193e-05,2]
[356352245,1742328632030,-500.0,8.193e-05,2]
[356352246,1742328632039,-500.0,8.193e-05,2]
[356352247,1742328632048,-500.0,8.193e-05,2]
[356352248,1742328632058,-500.0,8.193e-05,2]
[356352249,1742328632068,-500.0,8.193e-05,2]
[356352250,1742328632077,-500.0,8.193e-05,2]
[356352251,1742328632087,-500.0,8.193e-05,2]
[356352252,1742328632096,-500.0,8.193e-05,2]
[356352253,1742328632105,-500.0,8.193e-05,2]
[356352254,1742328632114,-500.0,8.193e-05,2]
[356352255,1742328632124,-500.0,8.219e-05,2]
[356352256,1742328632133,-500.0,8.219e-05,2]
[356352257,1742328632142,-500.0,8.219e-05,2]
[356352258,1742328632152,-513.1944816,8.219e-05,2]
[356352259,1742328632161,-500.0,8.219e-05,2]
[356352260,1742328632171,-500.0,8.219e-05,2]
[356352261,1742328632180,-500.0,8.219e-05,2]
[356352262,1742328632189,-500.0,8.219e-05,2]
[356352263,1742328632199,-500.0,8.219e-05,2]
[356352264,1742328632209,-500.0,8.219e-05,2]
[356352265,1742328632218,-500.0,8.219e-05,2]
[356352266,1742328632228,-500.0,8.219e-05,2]
[356352267,1742328632239,-500.0,8.219e-05,2]
[356352268,1742328632249,-447.40666548,8.219e-05,2]
[356352269,1742328632261,-500.0,8.219e-05,2]
[356352270,1742328632272,-500.0,8.219e-05,2]
[356352271,1742328632282,-500.0,8.219e-05,2]
[356352272,1742328632293,-500.0,8.219e-05,2]
[356352273,1742328632303,-500.0,8.219e-05,2]
[356352274,1742328632313,-500.0,8.219e-05,2]
[356352275,1742328632325,-278.74942108,8.219e-05,2]
[356352276,1742328632338,-500.0,8.219e-05,2]
[356352277,1742328632347,-584.62737467,8.219e-05,2]
[356352278,1742328632357,-442.00509356,8.219e-05,2]
[356352279,1742328632367,-500.0,8.219e-05,2]
[356352280,1742328632376,-500.0,8.219e-05,2]
[356352281,1742328632385,-514.3949053,8.219e-05,2]
[356352282,1742328632395,-503.64438027,8.219e-05,2]
[356352283,1742328632404,-500.0,8.219e-05,2]
[356352284,1742328632413,-500.0,8.219e-05,2]
[356352285,1742328632423,-500.0,8.219e-05,2]
[356352286,1742328632432,-500.0,8.219e-05,2]
[356352287,1742328632441,-504.9505403,8.219e-05,2]
[356352288,1742328632450,-500.0,8.219e-05,2]
[356352289,1742328632460,-500.0,8.219e-05,2]
[356352290,1742328632470,-500.0,8.219e-05,2]
[356352291,1742328632479,-500.0,8.219e-05,2]
[356352292,1742328632488,-500.0,8.219e-05,2]
[356352293,1742328632498,-500.0,8.219e-05,2]
[356352294,1742328632507,-500.0,8.219e-05,2]
[356352295,1742328632517,-500.0,8.219e-05,2]
[356352296,1742328632526,-500.0,8.219e-05,2]
[356352297,1742328632536,-500.0,8.219e-05,2]
[356352298,1742328632545,-500.0,8.219e-05,2]
[356352299,1742328632555,-500.0,8.219e-05,2]
[356352300,1742328632563,-500.0,8.219e-05,2]
[356352301,1742328632572,-500.0,8.219e-05,2]
[356352302,1742328632580,-500.94746082,8.219e-05,2]
[356352303,1742328632590,-492.82389718,8.219e-05,2]
[356352304,1742328632599,-500.0,8.219e-05,2]
[356352305,1742328632609,-500.0,8.219e-05,2]
[356352306,1742328632618,-500.0,8.219e-05,2]
[356352307,1742328632627,-500.0,8.219e-05,2]
[356352308,1742328632637,-500.0,8.219e-05,2]
[356352309,1742328632646,-500.0,8.219e-05,2]
[356352310,1742328632656,-500.0,8.219e-05,2]
[356352311,1742328632666,-512.12479303,8.219e-05,2]
[356352312,1742328632675,-500.0,8.219e-05,2]
[356352313,1742328632684,-500.0,8.219e-05,2]
[356352314,1742328632694,-500.0,8.219e-05,2]
[356352315,1742328632703,-500.0,8.219e-05,2]
[356352316,1742328632714,-500.0,8.219e-05,2]
[356352317,1742328632724,-338.94108516,8.219e-05,2]
[356352318,1742328632734,-500.0,8.219e-05,2]
[356352319,1742328632743,-500.0,8.219e-05,2]
[356352320,1742328632753,-597.32905734,8.219e-05,2]
[356352321,1742328632763,-500.0,8.219e-05,2]
[356352322,1742328632772,-500.0,8.219e-05,2]
[356352323,1742328632781,-500.0,8.219e-05,2]
[356352324,1742328632791,-500.0,8.219e-05,2]
[356352325,1742328632800,-500.0,8.219e-05,2]
[356352326,1742328632810,-500.0,8.219e-05,2]
[356352327,1742328632819,-500.0,8.219e-05,2]
[356352328,1742328632828,-500.0,8.219e-05,2]
[356352329,1742328632838,-296.49336089,8.219e-05,2]
[356352330,1742328632847,-500.0,8.219e-05,2]
[356352331,1742328632857,-500.0,8.219e-05,2]
[356352332,1742328632867,-500.0,8.219e-05,2]
[356352333,1742328632876,-500.0,8.219e-05,2]
[356352334,1742328632886,-500.0,8.219e-05,2]
[356352335,1742328632896,-401.0,8.219e-05,2]
[356352336,1742328632906,-500.0,8.219e-05,2]
[356352337,1742328632916,-500.0,8.219e-05,2]
[356352338,1742328632926,-500.0,8.219e-05,2]
[356352339,1742328632936,-505.72571479,8.219e-05,2]
[356352340,1742328632946,-500.0,8.219e-05,2]
[356352341,1742328633129,-500.0,8.219e-05,2]
[356352342,1742328633140,-500.0,8.219e-05,2]
[356352343,1742328633151,-500.0,8.219e-05,2]
[356352344,1742328633162,-500.0,8.219e-05,2]
[356352345,1742328633173,-500.0,8.219e-05,2]
[356352346,1742328633184,-509.18548445,8.219e-05,2]
[356352347,1742328633196,-500.0,8.219e-05,2]
[356352348,1742328633208,-500.0,8.219e-05,2]
[356352349,1742328633219,-237.49660358,8.219e-05,2]
[356352350,1742328633230,-500.0,8.219e-05,2]
[356352351,1742328633241,-500.0,8.219e-05,2]
[356352352,1742328633252,-500.0,8.219e-05,2]
[356352353,1742328633262,-500.0,8.219e-05,2]
[356352354,1742328633273,-497.16,8.219e-05,2]
[356352355,1742328633283,-500.0,8.219e-05,2]
[356352356,1742328633294,-500.0,8.219e-05,2]
[356352357,1742328633304,-500.0,8.219e-05,2]
[356352358,1742328633314,-500.0,8.219e-05,2]
[356352359,1742328633329,-500.0,8.219e-05,2]
[356352360,1742328633340,-514.44783545,8.219e-05,2]
[356352361,1742328633350,-500.0,8.219e-05,2]
[356352362,1742328633361,-500.0,8.219e-05,2]
[356352363,1742328633371,-500.0,8.219e-05,2]
[356352364,1742328633381,-500.0,8.219e-05,2]
[356352365,1742328633392,-507.57208371,8.219e-05,2]
[356352366,1742328633404,-508.80080084,8.219e-05,2]
[356352367,1742328633414,-500.0,8.219e-05,2]
[356352368,1742328633424,-500.0,8.219e-05,2]
[356352369,1742328633434,-500.0,8.219e-05,2]
[356352370,1742328633445,-500.0,8.219e-05,2]
[356352371,1742328633455,-500.0,8.219e-05,2]
[356352372,1742328633465,-500.0,8.219e-05,2]
[356352373,1742328633475,-500.0,8.219e-05,2]
[356352374,1742328633485,-500.0,8.219e-05,2]
[356352375,1742328633495,-515.8449149,8.219e-05,2]
[356352376,1742328633506,-500.0,8.219e-05,2]
[356352377,1742328633516,-500.0,8.219e-05,2]
[356352378,1742328633526,-500.0,8.219e-05,2]
[356352379,1742328633536,-500.0,8.219e-05,2]
[356352380,1742328633546,-500.0,8.219e-05,2]
[356352381,1742328633557,-500.0,8.219e-05,2]
[356352382,1742328633567,-500.0,8.219e-05,2]
[356352383,1742328633578,-500.0,8.219e-05,2]
[356352384,1742328633588,-505.58115245,8.219e-05,2]
[356352385,1742328633599,-167.58029623,8.219e-05,2]
[356352386,1742328633610,-500.0,8.219e-05,2]
[356352387,1742328633620,-500.0,8.219e-05,2]
[356352388,1742328633631,-500.0,8.219e-05,2]
[356352389,1742328633641,-500.0,8.219e-05,2]
[356352390,1742328633652,-500.0,8.219e-05,2]
[356352391,1742328633661,-500.0,8.219e-05,2]
[356352392,1742328633672,-500.0,8.219e-05,2]
[356352393,1742328633682,-500.0,8.219e-05,2]
[356352394,1742328633692,-595.56,8.219e-05,2]
[356352395,1742328633703,-500.0,8.219e-05,2]
[356352396,1742328633716,-500.0,8.219e-05,2]
[356352397,1742328633727,-500.0,8.219e-05,2]
[356352398,1742328633738,-505.84874518,8.219e-05,2]
[356352399,1742328633748,-500.0,8.219e-05,2]
[356352400,1742328633759,-505.66300375,8.219e-05,2]
[356352401,1742328633769,-500.0,8.219e-05,2]
[356352402,1742328633780,-500.0,8.219e-05,2]
[356352403,1742328633790,-500.0,8.219e-05,2]
[356352404,1742328633801,-600.76104699,8.219e-05,2]
[356352405,1742328633811,-500.0,8.219e-05,2]
[356352406,1742328633821,-500.0,8.219e-05,2]
[356352407,1742328633831,-506.44753683,8.219e-05,2]
[356352408,1742328633841,-500.0,8.219e-05,2]
[356352409,1742328633851,-500.0,8.219e-05,2]
[356352410,1742328633861,-500.0,8.219e-05,2]
[356352411,1742328633871,-500.0,8.219e-05,2]
[356352412,1742328633881,-500.0,8.219e-05,2]
[356352413,1742328633891,-504.21312224,8.219e-05,2]
[356352414,1742328633900,-500.0,8.219e-05,2]
[356352415,1742328633911,-500.0,8.219e-05,2]
[356352416,1742328633920,-500.0,8.219e-05,2]
[356352417,1742328633930,-500.0,8.219e-05,2]
[356352418,1742328633940,-500.0,8.219e-05,2]
[356352419,1742328633950,-500.0,8.219e-05,2]
[356352420,1742328633961,-500.0,8.219e-05,2]
[356352421,1742328633971,-500.0,8.219e-05,2]
[356352422,1742328633981,-503.70847964,8.219e-05,2]
[356352423,1742328633990,-500.0,8.219e-05,2]
[356352424,1742328634000,-500.0,8.219e-05,2]
[356352425,1742328634010,-252.88122462,8.219e-05,2]
[356352426,1742328634020,-500.0,8.219e-05,2]
[356352427,1742328634029,-500.0,8.219e-05,2]
[356352428,1742328634039,-500.0,8.219e-05,2]
[356352429,1742328634048,-500.0,8.219e-05,2]
[356352430,1742328634057,-504.58,8.219e-05,2]
[356352431,1742328634067,-500.0,8.219e-05,2]
[356352432,1742328634076,-500.0,8.219e-05,2]
[356352433,1742328634086,-500.0,8.219e-05,2]
[356352434,1742328634095,-640.18,8.219e-05,2]
[356352435,1742328634104,-500.0,8.219e-05,2]
[356352436,1742328634113,-500.0,8.219e-05,2]